[Event "Titled Tuesday Blitz September 20 Late 2022"]
[White "Andreikin, Dmitry"]
[Black "Khandelwal, Ankush"]
[WhiteFideId "4158814"]
[BlackFideId "413470"]
[WhiteElo "2736"]
[BlackElo "2271"]
[Result "1-0"]
[Round "01"]
[TimeControl "180+1"]
[Date "2022.09.20"]
[WhiteClock "0:02:11"]
[BlackClock "0:00:24"]

1. c4 {[%clk 0:02:59]}  Nf6 {[%clk 0:02:56]} 2. Nc3 {[%clk 0:02:59]}  g6 {[%clk 0:02:55]} 3. e4 {[%clk 0:02:58]}  d6 {[%clk 0:02:55]} 4. d4 {[%clk 0:02:58]}  Bg7 {[%clk 0:02:55]} 5. h3 {[%clk 0:02:58]}  Nbd7 {[%clk 0:02:48]} 6. Be3 {[%clk 0:02:59]}  e5 {[%clk 0:02:40]} 7. d5 {[%clk 0:02:56]}  Nc5 {[%clk 0:02:27]} 8. f3 {[%clk 0:02:55]}  a5 {[%clk 0:02:24]} 9. Nge2 {[%clk 0:02:54]}  b6 {[%clk 0:02:22]} 10. Qd2 {[%clk 0:02:52]}  O-O {[%clk 0:02:17]} 11. g4 {[%clk 0:02:49]}  a4 {[%clk 0:02:06]} 12. Ng3 {[%clk 0:02:49]}  Nfd7 {[%clk 0:01:46]} 13. h4 {[%clk 0:02:47]}  Bb7 {[%clk 0:01:44]} 14. h5 {[%clk 0:02:47]}  c6 {[%clk 0:01:44]} 15. O-O-O {[%clk 0:02:39]}  cxd5 {[%clk 0:01:42]} 16. Nxd5 {[%clk 0:02:38]}  Nb3+ {[%clk 0:01:32]} 17. axb3 {[%clk 0:02:35]}  axb3 {[%clk 0:01:33]} 18. Qb4 {[%clk 0:02:31]}  Ra1+ {[%clk 0:01:05]} 19. Kd2 {[%clk 0:02:31]}  Rxd1+ {[%clk 0:01:06]} 20. Kxd1 {[%clk 0:02:32]}  Bxd5 {[%clk 0:00:55]} 21. cxd5 {[%clk 0:02:31]}  Qa8 {[%clk 0:00:53]} 22. Qxb3 {[%clk 0:02:23]}  Qa1+ {[%clk 0:00:51]} 23. Kd2 {[%clk 0:02:20]}  f5 {[%clk 0:00:44]} 24. gxf5 {[%clk 0:02:17]}  gxf5 {[%clk 0:00:45]} 25. Nxf5 {[%clk 0:02:17]}  Rxf5 {[%clk 0:00:44]} 26. exf5 {[%clk 0:02:17]}  e4 {[%clk 0:00:45]} 27. Rg1 {[%clk 0:02:16]}  Kf8 {[%clk 0:00:39]} 28. Qa3 {[%clk 0:02:11]}  Qxb2+ {[%clk 0:00:22]} 29. Qxb2 {[%clk 0:02:11]}  Bxb2 {[%clk 0:00:23]} 30. fxe4 {[%clk 0:02:11]}  Nf6 {[%clk 0:00:24]} 31. Bd3 {[%clk 0:02:11]} 1-0


[Site "https://www.chess.com"]

[Event "Titled Tuesday Blitz September 20 Late 2022"]
[White "Arnold, Ken"]
[Black "Moroni, Luca Jr"]
[WhiteFideId "2056836"]
[BlackFideId "865834"]
[WhiteElo "2488"]
[BlackElo "2573"]
[Result "0-1"]
[Round "01"]
[TimeControl "180+1"]
[Date "2022.09.20"]
[WhiteClock "0:00:05"]
[BlackClock "0:01:05"]

1. d4 {[%clk 0:02:55]}  g6 {[%clk 0:03:00]} 2. c4 {[%clk 0:02:47]}  Bg7 {[%clk 0:03:01]} 3. Nc3 {[%clk 0:02:47]}  d6 {[%clk 0:02:58]} 4. Nf3 {[%clk 0:02:47]}  Nc6 {[%clk 0:02:58]} 5. Bf4 {[%clk 0:02:45]}  Bg4 {[%clk 0:02:52]} 6. e3 {[%clk 0:02:44]}  e5 {[%clk 0:02:50]} 7. dxe5 {[%clk 0:02:43]}  dxe5 {[%clk 0:02:45]} 8. Bg3 {[%clk 0:02:16]}  Nge7 {[%clk 0:02:42]} 9. Qb3 {[%clk 0:02:08]}  O-O {[%clk 0:02:37]} 10. Rd1 {[%clk 0:02:06]}  Qc8 {[%clk 0:02:37]} 11. Be2 {[%clk 0:02:06]}  f5 {[%clk 0:02:33]} 12. h3 {[%clk 0:02:02]}  Bxf3 {[%clk 0:02:32]} 13. Bxf3 {[%clk 0:01:59]}  f4 {[%clk 0:02:32]} 14. Bh2 {[%clk 0:01:51]}  Kh8 {[%clk 0:02:29]} 15. exf4 {[%clk 0:01:48]}  exf4 {[%clk 0:02:28]} 16. O-O {[%clk 0:01:44]}  Nf5 {[%clk 0:02:27]} 17. Bxc6 {[%clk 0:01:22]}  bxc6 {[%clk 0:02:26]} 18. Bxf4 {[%clk 0:01:19]}  Nd4 {[%clk 0:02:25]} 19. Rxd4 {[%clk 0:01:17]}  Bxd4 {[%clk 0:02:26]} 20. Bh6 {[%clk 0:01:11]}  Re8 {[%clk 0:02:21]} 21. Ne2 {[%clk 0:00:53]}  Bf6 {[%clk 0:02:14]} 22. Ng3 {[%clk 0:00:47]}  Qe6 {[%clk 0:02:10]} 23. Be3 {[%clk 0:00:40]}  Rab8 {[%clk 0:02:02]} 24. Qc2 {[%clk 0:00:39]}  Rxb2 {[%clk 0:02:00]} 25. Qa4 {[%clk 0:00:38]}  Be5 {[%clk 0:01:55]} 26. Ne4 {[%clk 0:00:34]}  Bg7 {[%clk 0:01:43]} 27. Ng5 {[%clk 0:00:29]}  Qf6 {[%clk 0:01:39]} 28. Qxa7 {[%clk 0:00:24]}  h6 {[%clk 0:01:36]} 29. Nf3 {[%clk 0:00:20]}  Qf7 {[%clk 0:01:33]} 30. Bd4 {[%clk 0:00:17]}  Rc2 {[%clk 0:01:31]} 31. Bxg7+ {[%clk 0:00:17]}  Qxg7 {[%clk 0:01:29]} 32. Qc5 {[%clk 0:00:17]}  Kh7 {[%clk 0:01:23]} 33. Qxc6 {[%clk 0:00:16]}  Rf8 {[%clk 0:01:22]} 34. a4 {[%clk 0:00:15]}  Ra2 {[%clk 0:01:20]} 35. Rd1 {[%clk 0:00:13]}  Rf6 {[%clk 0:01:19]} 36. Qb5 {[%clk 0:00:11]}  Rf5 {[%clk 0:01:18]} 37. Rd7 {[%clk 0:00:11]}  Rxb5 {[%clk 0:01:13]} 38. Rxg7+ {[%clk 0:00:11]}  Kxg7 {[%clk 0:01:14]} 39. axb5 {[%clk 0:00:11]}  Rc2 {[%clk 0:01:11]} 40. Ne5 {[%clk 0:00:11]}  Kf6 {[%clk 0:01:12]} 41. f4 {[%clk 0:00:11]}  Kf5 {[%clk 0:01:10]} 42. Ng4 {[%clk 0:00:06]}  Kxf4 {[%clk 0:01:07]} 43. Nxh6 {[%clk 0:00:05]}  Kg3 {[%clk 0:01:06]} 44. Kf1 {[%clk 0:00:05]}  Rxc4 {[%clk 0:01:05]} 0-1


[Site "https://www.chess.com"]

[Event "Titled Tuesday Blitz September 20 Late 2022"]
[White "Bluebaum, Matthias"]
[Black "Shandrygin, Nikita"]
[WhiteFideId "24651516"]
[BlackFideId "24198668"]
[WhiteElo "2633"]
[BlackElo "2323"]
[Result "1-0"]
[Round "01"]
[TimeControl "180+1"]
[Date "2022.09.20"]
[WhiteClock "0:00:59"]
[BlackClock "0:00:02"]

1. d4 {[%clk 0:03:00]}  d5 {[%clk 0:02:59]} 2. c4 {[%clk 0:02:59]}  Nc6 {[%clk 0:03:00]} 3. Nc3 {[%clk 0:02:57]}  dxc4 {[%clk 0:03:00]} 4. Nf3 {[%clk 0:02:56]}  Nf6 {[%clk 0:02:53]} 5. e4 {[%clk 0:02:56]}  Bg4 {[%clk 0:02:28]} 6. Be3 {[%clk 0:02:52]}  e6 {[%clk 0:02:19]} 7. Bxc4 {[%clk 0:02:51]}  a6 {[%clk 0:02:18]} 8. O-O {[%clk 0:02:38]}  Be7 {[%clk 0:02:18]} 9. Be2 {[%clk 0:02:37]}  O-O {[%clk 0:02:17]} 10. h3 {[%clk 0:02:36]}  Bh5 {[%clk 0:02:17]} 11. Qd2 {[%clk 0:02:32]}  Bg6 {[%clk 0:02:01]} 12. Bd3 {[%clk 0:02:29]}  Nb4 {[%clk 0:01:52]} 13. Bb1 {[%clk 0:02:28]}  c5 {[%clk 0:01:53]} 14. dxc5 {[%clk 0:02:24]}  Qxd2 {[%clk 0:01:53]} 15. Nxd2 {[%clk 0:02:25]}  Rfd8 {[%clk 0:01:47]} 16. Nc4 {[%clk 0:02:17]}  Rac8 {[%clk 0:01:44]} 17. a3 {[%clk 0:02:17]}  Nd3 {[%clk 0:01:42]} 18. Bxd3 {[%clk 0:02:17]}  Rxd3 {[%clk 0:01:41]} 19. Ne5 {[%clk 0:02:18]}  Rdd8 {[%clk 0:01:15]} 20. Nxg6 {[%clk 0:02:16]}  hxg6 {[%clk 0:01:16]} 21. b4 {[%clk 0:02:16]}  b6 {[%clk 0:01:16]} 22. Na4 {[%clk 0:02:07]}  bxc5 {[%clk 0:01:15]} 23. Bxc5 {[%clk 0:02:08]}  Bxc5 {[%clk 0:01:09]} 24. Nxc5 {[%clk 0:02:09]}  a5 {[%clk 0:01:00]} 25. Rfd1 {[%clk 0:02:01]}  Rxd1+ {[%clk 0:00:44]} 26. Rxd1 {[%clk 0:02:02]}  axb4 {[%clk 0:00:45]} 27. axb4 {[%clk 0:02:02]}  e5 {[%clk 0:00:46]} 28. f3 {[%clk 0:02:00]}  Kf8 {[%clk 0:00:43]} 29. Rb1 {[%clk 0:01:59]}  Ke7 {[%clk 0:00:41]} 30. Nd3 {[%clk 0:01:59]}  Nd7 {[%clk 0:00:39]} 31. b5 {[%clk 0:02:00]}  f6 {[%clk 0:00:35]} 32. Nb4 {[%clk 0:02:00]}  Nb6 {[%clk 0:00:35]} 33. Nc6+ {[%clk 0:02:00]}  Ke6 {[%clk 0:00:31]} 34. Ra1 {[%clk 0:02:00]}  Rc7 {[%clk 0:00:30]} 35. Ra6 {[%clk 0:01:59]}  Nd7 {[%clk 0:00:19]} 36. Nb4+ {[%clk 0:01:46]}  Kf7 {[%clk 0:00:18]} 37. b6 {[%clk 0:01:37]}  Rc1+ {[%clk 0:00:11]} 38. Kh2 {[%clk 0:01:37]}  Rb1 {[%clk 0:00:12]} 39. Nd5 {[%clk 0:01:35]}  g5 {[%clk 0:00:08]} 40. Ra7 {[%clk 0:01:31]}  Ke6 {[%clk 0:00:09]} 41. b7 {[%clk 0:01:29]}  Nc5 {[%clk 0:00:08]} 42. Nc7+ {[%clk 0:00:59]}  Kd6 {[%clk 0:00:05]} 43. Ne8+ {[%clk 0:00:59]}  Ke7 {[%clk 0:00:02]} 44. b8=Q+ {[%clk 0:00:59]} 1-0


[Site "https://www.chess.com"]

[Event "Titled Tuesday Blitz September 20 Late 2022"]
[White "Bortnyk, Olexandr"]
[Black "Runets, Ivan"]
[WhiteFideId "14120828"]
[BlackFideId "13511564"]
[WhiteElo "2723"]
[BlackElo "1962"]
[Result "1-0"]
[Round "01"]
[TimeControl "180+1"]
[Date "2022.09.20"]
[WhiteClock "0:02:35"]
[BlackClock "0:00:21"]

1. d4 {[%clk 0:03:00]}  Nf6 {[%clk 0:02:59]} 2. Nc3 {[%clk 0:03:00]}  d5 {[%clk 0:02:58]} 3. Bf4 {[%clk 0:03:01]}  e6 {[%clk 0:02:47]} 4. Nb5 {[%clk 0:03:00]}  Bd6 {[%clk 0:02:45]} 5. Nxd6+ {[%clk 0:02:59]}  cxd6 {[%clk 0:02:46]} 6. Nf3 {[%clk 0:02:59]}  Nc6 {[%clk 0:02:46]} 7. e3 {[%clk 0:02:58]}  h6 {[%clk 0:02:40]} 8. h3 {[%clk 0:02:58]}  O-O {[%clk 0:02:40]} 9. c3 {[%clk 0:02:58]}  Qe7 {[%clk 0:02:39]} 10. Be2 {[%clk 0:02:58]}  e5 {[%clk 0:02:37]} 11. Bh2 {[%clk 0:02:59]}  Bf5 {[%clk 0:02:37]} 12. O-O {[%clk 0:02:58]}  Rac8 {[%clk 0:02:29]} 13. Qb3 {[%clk 0:02:57]}  Rfd8 {[%clk 0:01:52]} 14. Qa3 {[%clk 0:02:51]}  Rc7 {[%clk 0:01:17]} 15. Rfd1 {[%clk 0:02:46]}  b6 {[%clk 0:01:10]} 16. Rac1 {[%clk 0:02:42]}  Nd7 {[%clk 0:00:54]} 17. dxe5 {[%clk 0:02:39]}  dxe5 {[%clk 0:00:50]} 18. Qxe7 {[%clk 0:02:37]}  Nxe7 {[%clk 0:00:50]} 19. Nxe5 {[%clk 0:02:38]}  Nxe5 {[%clk 0:00:48]} 20. Bxe5 {[%clk 0:02:39]}  Rcc8 {[%clk 0:00:48]} 21. Bg3 {[%clk 0:02:36]}  f6 {[%clk 0:00:45]} 22. Rd2 {[%clk 0:02:35]}  Kf7 {[%clk 0:00:45]} 23. Rcd1 {[%clk 0:02:36]}  Rc5 {[%clk 0:00:39]} 24. c4 {[%clk 0:02:34]}  Be6 {[%clk 0:00:39]} 25. b4 {[%clk 0:02:34]}  Rcc8 {[%clk 0:00:37]} 26. e4 {[%clk 0:02:34]}  d4 {[%clk 0:00:30]} 27. Rxd4 {[%clk 0:02:34]}  Rxd4 {[%clk 0:00:31]} 28. Rxd4 {[%clk 0:02:34]}  Nc6 {[%clk 0:00:32]} 29. Rd6 {[%clk 0:02:35]}  Nxb4 {[%clk 0:00:31]} 30. Rxe6 {[%clk 0:02:36]}  Rd8 {[%clk 0:00:21]} 31. Rd6 {[%clk 0:02:35]} 1-0


[Site "https://www.chess.com"]

[Event "Titled Tuesday Blitz September 20 Late 2022"]
[White "Donchenko, Alexander"]
[Black "Makaraci, Tunahan"]
[WhiteFideId "24603295"]
[BlackFideId "6356559"]
[WhiteElo "2572"]
[BlackElo "2003"]
[Result "1-0"]
[Round "01"]
[TimeControl "180+1"]
[Date "2022.09.20"]
[WhiteClock "0:01:59"]
[BlackClock "0:00:37"]

1. d4 {[%clk 0:02:58]}  d5 {[%clk 0:03:00]} 2. c4 {[%clk 0:02:59]}  e6 {[%clk 0:03:00]} 3. Nf3 {[%clk 0:02:59]}  c5 {[%clk 0:03:01]} 4. g3 {[%clk 0:03:00]}  Nf6 {[%clk 0:03:00]} 5. cxd5 {[%clk 0:03:00]}  exd5 {[%clk 0:03:01]} 6. Bg2 {[%clk 0:03:01]}  Nc6 {[%clk 0:03:01]} 7. O-O {[%clk 0:03:01]}  Be7 {[%clk 0:03:01]} 8. dxc5 {[%clk 0:03:01]}  Bxc5 {[%clk 0:03:01]} 9. a3 {[%clk 0:03:02]}  Ne4 {[%clk 0:03:00]} 10. b4 {[%clk 0:03:01]}  Be7 {[%clk 0:03:01]} 11. Bb2 {[%clk 0:03:01]}  Bf6 {[%clk 0:03:01]} 12. Qc1 {[%clk 0:03:00]}  O-O {[%clk 0:02:59]} 13. Nbd2 {[%clk 0:03:01]}  Bf5 {[%clk 0:02:58]} 14. Rd1 {[%clk 0:02:53]}  Qe7 {[%clk 0:02:55]} 15. Nxe4 {[%clk 0:02:37]}  dxe4 {[%clk 0:02:54]} 16. Nd4 {[%clk 0:02:37]}  Nxd4 {[%clk 0:02:49]} 17. Bxd4 {[%clk 0:02:38]}  Rfd8 {[%clk 0:02:42]} 18. Bxf6 {[%clk 0:02:28]}  Qxf6 {[%clk 0:02:41]} 19. Qf4 {[%clk 0:02:28]}  g5 {[%clk 0:01:44]} 20. Qe3 {[%clk 0:02:26]}  Qe7 {[%clk 0:01:35]} 21. Rxd8+ {[%clk 0:02:21]}  Rxd8 {[%clk 0:01:33]} 22. Qxa7 {[%clk 0:02:21]}  Qe5 {[%clk 0:01:30]} 23. Rc1 {[%clk 0:02:20]}  Qb2 {[%clk 0:01:26]} 24. Qe3 {[%clk 0:02:19]}  h6 {[%clk 0:01:23]} 25. h4 {[%clk 0:02:11]}  Rd2 {[%clk 0:01:21]} 26. Re1 {[%clk 0:02:11]}  Qd4 {[%clk 0:01:13]} 27. Qxd4 {[%clk 0:02:07]}  Rxd4 {[%clk 0:01:14]} 28. hxg5 {[%clk 0:02:07]}  hxg5 {[%clk 0:01:14]} 29. Rc1 {[%clk 0:02:04]}  Rd2 {[%clk 0:01:13]} 30. Rc5 {[%clk 0:02:04]}  Be6 {[%clk 0:00:55]} 31. Rxg5+ {[%clk 0:02:03]}  Kf8 {[%clk 0:00:56]} 32. Bxe4 {[%clk 0:02:03]}  b6 {[%clk 0:00:55]} 33. e3 {[%clk 0:02:02]}  Ra2 {[%clk 0:00:52]} 34. Rb5 {[%clk 0:02:01]}  Rxa3 {[%clk 0:00:49]} 35. Rxb6 {[%clk 0:02:02]}  Ke7 {[%clk 0:00:48]} 36. Rb7+ {[%clk 0:02:00]}  Kf6 {[%clk 0:00:48]} 37. Kg2 {[%clk 0:02:00]}  Rb3 {[%clk 0:00:44]} 38. b5 {[%clk 0:02:00]}  Rb4 {[%clk 0:00:44]} 39. Bf3 {[%clk 0:02:00]}  Bc4 {[%clk 0:00:36]} 40. b6 {[%clk 0:02:00]}  Rb5 {[%clk 0:00:37]} 41. Rb8 {[%clk 0:01:59]} 1-0


[Site "https://www.chess.com"]

[Event "Titled Tuesday Blitz September 20 Late 2022"]
[White "Fiorito, Joaquin"]
[Black "Zierk, Steven"]
[WhiteFideId "180173"]
[BlackFideId "2034255"]
[WhiteElo "1758"]
[BlackElo "2494"]
[Result "0-1"]
[Round "01"]
[TimeControl "180+1"]
[Date "2022.09.20"]
[WhiteClock "0:00:06"]
[BlackClock "0:00:08"]

1. d4 {[%clk 0:03:00]}  Nf6 {[%clk 0:02:55]} 2. Nc3 {[%clk 0:03:00]}  d5 {[%clk 0:02:53]} 3. Bf4 {[%clk 0:03:00]}  c5 {[%clk 0:02:53]} 4. e4 {[%clk 0:02:53]}  Nxe4 {[%clk 0:02:52]} 5. Bb5+ {[%clk 0:02:43]}  Bd7 {[%clk 0:02:46]} 6. Nxd5 {[%clk 0:02:40]}  e5 {[%clk 0:02:12]} 7. Bxd7+ {[%clk 0:02:18]}  Qxd7 {[%clk 0:02:07]} 8. dxe5 {[%clk 0:02:18]}  Na6 {[%clk 0:01:59]} 9. Qd3 {[%clk 0:02:04]}  O-O-O {[%clk 0:01:55]} 10. Qxe4 {[%clk 0:02:02]}  Qxd5 {[%clk 0:01:54]} 11. Qxd5 {[%clk 0:02:03]}  Rxd5 {[%clk 0:01:55]} 12. c3 {[%clk 0:02:00]}  g5 {[%clk 0:01:48]} 13. Bxg5 {[%clk 0:01:52]}  Rxe5+ {[%clk 0:01:47]} 14. Be3 {[%clk 0:01:52]}  Bh6 {[%clk 0:01:41]} 15. Nf3 {[%clk 0:01:53]}  Re6 {[%clk 0:01:39]} 16. O-O {[%clk 0:01:39]}  Bxe3 {[%clk 0:01:38]} 17. fxe3 {[%clk 0:01:40]}  Rxe3 {[%clk 0:01:35]} 18. Rae1 {[%clk 0:01:41]}  Rxe1 {[%clk 0:01:26]} 19. Rxe1 {[%clk 0:01:41]}  Rf8 {[%clk 0:01:16]} 20. Re7 {[%clk 0:01:37]}  h6 {[%clk 0:00:56]} 21. Kf2 {[%clk 0:01:25]}  Nc7 {[%clk 0:00:54]} 22. Re5 {[%clk 0:01:09]}  Ne6 {[%clk 0:00:49]} 23. Rf5 {[%clk 0:01:05]}  Kd7 {[%clk 0:00:47]} 24. Ne5+ {[%clk 0:01:05]}  Ke7 {[%clk 0:00:46]} 25. h3 {[%clk 0:00:58]}  Ng5 {[%clk 0:00:41]} 26. Ng4 {[%clk 0:00:56]}  Rd8 {[%clk 0:00:31]} 27. Re5+ {[%clk 0:00:50]}  Kd6 {[%clk 0:00:23]} 28. Re2 {[%clk 0:00:51]}  h5 {[%clk 0:00:18]} 29. Nf6 {[%clk 0:00:50]}  Rh8 {[%clk 0:00:17]} 30. Ne4+ {[%clk 0:00:49]}  Nxe4+ {[%clk 0:00:16]} 31. Rxe4 {[%clk 0:00:50]}  Rh6 {[%clk 0:00:16]} 32. Rf4 {[%clk 0:00:49]}  Ke6 {[%clk 0:00:16]} 33. Kf3 {[%clk 0:00:47]}  Rg6 {[%clk 0:00:15]} 34. g3 {[%clk 0:00:46]}  Rg5 {[%clk 0:00:15]} 35. Re4+ {[%clk 0:00:46]}  Kd6 {[%clk 0:00:15]} 36. Kf4 {[%clk 0:00:46]}  Rd5 {[%clk 0:00:14]} 37. Re2 {[%clk 0:00:46]}  Rd3 {[%clk 0:00:14]} 38. Re8 {[%clk 0:00:26]}  Kd7 {[%clk 0:00:12]} 39. Re5 {[%clk 0:00:24]}  Rd2 {[%clk 0:00:10]} 40. Rxc5 {[%clk 0:00:24]}  Rxb2 {[%clk 0:00:10]} 41. Rxh5 {[%clk 0:00:24]}  Rxa2 {[%clk 0:00:11]} 42. Rd5+ {[%clk 0:00:24]}  Ke6 {[%clk 0:00:11]} 43. Rd8 {[%clk 0:00:24]}  Ra4+ {[%clk 0:00:10]} 44. Kf3 {[%clk 0:00:24]}  Rc4 {[%clk 0:00:10]} 45. Re8+ {[%clk 0:00:22]}  Kf6 {[%clk 0:00:10]} 46. Re3 {[%clk 0:00:20]}  a5 {[%clk 0:00:09]} 47. Ke2 {[%clk 0:00:21]}  Rc5 {[%clk 0:00:09]} 48. Kd3 {[%clk 0:00:21]}  b5 {[%clk 0:00:08]} 49. Rf3+ {[%clk 0:00:20]}  Kg6 {[%clk 0:00:08]} 50. Rf4 {[%clk 0:00:20]}  Rh5 {[%clk 0:00:07]} 51. h4 {[%clk 0:00:20]}  Re5 {[%clk 0:00:07]} 52. Rg4+ {[%clk 0:00:19]}  Kh5 {[%clk 0:00:06]} 53. Rf4 {[%clk 0:00:19]}  f5 {[%clk 0:00:06]} 54. Rd4 {[%clk 0:00:20]}  a4 {[%clk 0:00:05]} 55. Kd2 {[%clk 0:00:14]}  Re4 {[%clk 0:00:04]} 56. Rd5 {[%clk 0:00:14]}  Kg4 {[%clk 0:00:04]} 57. Rxb5 {[%clk 0:00:14]}  Re6 {[%clk 0:00:03]} 58. Kc2 {[%clk 0:00:13]}  Re2+ {[%clk 0:00:03]} 59. Kd3 {[%clk 0:00:14]}  Rg2 {[%clk 0:00:03]} 60. Rb4+ {[%clk 0:00:13]}  Kxg3 {[%clk 0:00:03]} 61. Rxa4 {[%clk 0:00:14]}  f4 {[%clk 0:00:04]} 62. h5 {[%clk 0:00:11]}  f3 {[%clk 0:00:05]} 63. Ra8 {[%clk 0:00:10]}  Rh2 {[%clk 0:00:05]} 64. Rg8+ {[%clk 0:00:10]}  Kf2 {[%clk 0:00:06]} 65. Ke4 {[%clk 0:00:09]}  Ke2 {[%clk 0:00:06]} 66. Rf8 {[%clk 0:00:09]}  f2 {[%clk 0:00:06]} 67. c4 {[%clk 0:00:06]}  Rxh5 {[%clk 0:00:06]} 68. Kd4 {[%clk 0:00:04]}  Rh4+ {[%clk 0:00:06]} 69. Kd5 {[%clk 0:00:04]}  Rh3 {[%clk 0:00:07]} 70. c5 {[%clk 0:00:04]}  Rf3 {[%clk 0:00:06]} 71. Rxf3 {[%clk 0:00:05]}  Kxf3 {[%clk 0:00:07]} 72. c6 {[%clk 0:00:06]}  f1=Q {[%clk 0:00:08]} 73. c7 {[%clk 0:00:06]}  Qa6 {[%clk 0:00:08]} 0-1


[Site "https://www.chess.com"]

[Event "Titled Tuesday Blitz September 20 Late 2022"]
[White "Fries-Nielsen, Jens Ove"]
[Black "Naroditsky, Daniel"]
[WhiteFideId "1400142"]
[BlackFideId "2026961"]
[WhiteElo "2544"]
[BlackElo "2628"]
[Result "0-1"]
[Round "01"]
[TimeControl "180+1"]
[Date "2022.09.20"]
[WhiteClock "0:01:44"]
[BlackClock "0:02:26"]

1. d4 {[%clk 0:02:57]}  Nf6 {[%clk 0:03:00]} 2. Nc3 {[%clk 0:02:57]}  d5 {[%clk 0:02:59]} 3. Bf4 {[%clk 0:02:57]}  c5 {[%clk 0:02:58]} 4. e3 {[%clk 0:02:55]}  cxd4 {[%clk 0:02:57]} 5. exd4 {[%clk 0:02:55]}  Bg4 {[%clk 0:02:58]} 6. Be2 {[%clk 0:02:55]}  Bxe2 {[%clk 0:02:57]} 7. Qxe2 {[%clk 0:02:55]}  Nc6 {[%clk 0:02:58]} 8. Nf3 {[%clk 0:02:55]}  e6 {[%clk 0:02:58]} 9. a3 {[%clk 0:02:55]}  Bd6 {[%clk 0:02:58]} 10. Bxd6 {[%clk 0:02:54]}  Qxd6 {[%clk 0:02:59]} 11. O-O {[%clk 0:02:54]}  O-O {[%clk 0:02:59]} 12. Rfe1 {[%clk 0:02:55]}  a6 {[%clk 0:02:58]} 13. Rad1 {[%clk 0:02:54]}  Rac8 {[%clk 0:02:52]} 14. Rd3 {[%clk 0:02:53]}  b5 {[%clk 0:02:49]} 15. Ne5 {[%clk 0:02:53]}  Nd7 {[%clk 0:02:47]} 16. Nxc6 {[%clk 0:02:50]}  Rxc6 {[%clk 0:02:45]} 17. Rh3 {[%clk 0:02:48]}  Nf6 {[%clk 0:02:41]} 18. Qd2 {[%clk 0:02:37]}  Rfc8 {[%clk 0:02:34]} 19. Re2 {[%clk 0:02:37]}  b4 {[%clk 0:02:30]} 20. axb4 {[%clk 0:02:27]}  Qxb4 {[%clk 0:02:31]} 21. Rg3 {[%clk 0:01:48]}  Qxb2 {[%clk 0:02:29]} 22. Qg5 {[%clk 0:01:44]}  Qa1+ {[%clk 0:02:26]} 0-1


[Site "https://www.chess.com"]

[Event "Titled Tuesday Blitz September 20 Late 2022"]
[White "Jobava, Baadur"]
[Black "Reprintsev, Alexander"]
[WhiteFideId "13601520"]
[BlackFideId "14100541"]
[WhiteElo "2582"]
[BlackElo "2108"]
[Result "1-0"]
[Round "01"]
[TimeControl "180+1"]
[Date "2022.09.20"]
[WhiteClock "0:00:31"]
[BlackClock "0:00:15"]

1. b3 {[%clk 0:02:58]}  d5 {[%clk 0:02:49]} 2. Bb2 {[%clk 0:02:59]}  Nf6 {[%clk 0:02:46]} 3. d3 {[%clk 0:02:58]}  Bf5 {[%clk 0:02:45]} 4. Nd2 {[%clk 0:02:58]}  Nbd7 {[%clk 0:02:44]} 5. g3 {[%clk 0:02:59]}  e6 {[%clk 0:02:43]} 6. Bg2 {[%clk 0:02:59]}  Be7 {[%clk 0:02:42]} 7. e4 {[%clk 0:03:00]}  dxe4 {[%clk 0:02:40]} 8. dxe4 {[%clk 0:02:59]}  Bg6 {[%clk 0:02:40]} 9. Ne2 {[%clk 0:02:58]}  Nc5 {[%clk 0:02:34]} 10. e5 {[%clk 0:02:51]}  Nfe4 {[%clk 0:02:30]} 11. Nxe4 {[%clk 0:02:50]}  Bxe4 {[%clk 0:02:28]} 12. O-O {[%clk 0:02:41]}  Qxd1 {[%clk 0:02:26]} 13. Rfxd1 {[%clk 0:02:34]}  Bxc2 {[%clk 0:02:25]} 14. Rdc1 {[%clk 0:02:28]}  Be4 {[%clk 0:02:21]} 15. Bxe4 {[%clk 0:02:25]}  Nxe4 {[%clk 0:02:21]} 16. Rxc7 {[%clk 0:02:25]}  Bc5 {[%clk 0:02:13]} 17. Bd4 {[%clk 0:02:12]}  Bxd4 {[%clk 0:02:12]} 18. Nxd4 {[%clk 0:02:13]}  O-O {[%clk 0:02:02]} 19. Re1 {[%clk 0:02:08]}  Ng5 {[%clk 0:01:37]} 20. Kg2 {[%clk 0:01:58]}  Rfd8 {[%clk 0:01:34]} 21. Rc4 {[%clk 0:01:57]}  h6 {[%clk 0:01:33]} 22. f4 {[%clk 0:01:49]}  Nh7 {[%clk 0:01:32]} 23. Kf3 {[%clk 0:01:49]}  Nf8 {[%clk 0:01:32]} 24. Ke4 {[%clk 0:01:48]}  Rd7 {[%clk 0:01:30]} 25. Rec1 {[%clk 0:01:36]}  Rad8 {[%clk 0:01:30]} 26. a4 {[%clk 0:01:36]}  f6 {[%clk 0:01:29]} 27. exf6 {[%clk 0:01:24]}  gxf6 {[%clk 0:01:29]} 28. R1c3 {[%clk 0:01:19]}  a6 {[%clk 0:01:27]} 29. Ke3 {[%clk 0:01:17]}  Kf7 {[%clk 0:01:21]} 30. Rc7 {[%clk 0:01:11]}  Rxc7 {[%clk 0:01:03]} 31. Rxc7+ {[%clk 0:01:11]}  Rd7 {[%clk 0:01:04]} 32. Rc8 {[%clk 0:01:06]}  Ke7 {[%clk 0:00:56]} 33. a5 {[%clk 0:01:04]}  Rd8 {[%clk 0:00:52]} 34. Rc7+ {[%clk 0:01:01]}  Rd7 {[%clk 0:00:52]} 35. Rc5 {[%clk 0:01:01]}  f5 {[%clk 0:00:31]} 36. b4 {[%clk 0:00:51]}  Ng6 {[%clk 0:00:28]} 37. b5 {[%clk 0:00:44]}  axb5 {[%clk 0:00:27]} 38. Rxb5 {[%clk 0:00:44]}  Nf8 {[%clk 0:00:22]} 39. Nb3 {[%clk 0:00:40]}  Kd6 {[%clk 0:00:20]} 40. Nc5 {[%clk 0:00:37]}  Rc7 {[%clk 0:00:20]} 41. Nxb7+ {[%clk 0:00:37]}  Kc6 {[%clk 0:00:20]} 42. Rb6+ {[%clk 0:00:38]}  Kd5 {[%clk 0:00:20]} 43. a6 {[%clk 0:00:38]}  Nd7 {[%clk 0:00:19]} 44. Rd6+ {[%clk 0:00:38]}  Kc4 {[%clk 0:00:17]} 45. a7 {[%clk 0:00:37]}  Rxb7 {[%clk 0:00:16]} 46. a8=Q {[%clk 0:00:37]}  Rb3+ {[%clk 0:00:16]} 47. Ke2 {[%clk 0:00:37]}  Nc5 {[%clk 0:00:17]} 48. Qa2 {[%clk 0:00:34]}  Kc3 {[%clk 0:00:15]} 49. Qd2+ {[%clk 0:00:34]}  Kc4 {[%clk 0:00:15]} 50. Qd4+ {[%clk 0:00:33]}  Kb5 {[%clk 0:00:15]} 51. Rd8 {[%clk 0:00:31]} 1-0


[Site "https://www.chess.com"]